{"text_format":"1","workbook":"xlsx","n_sheets":16,"sheets":["注意事項等","質疑等連絡票","軽微変更該当証明申請書","２面","３面","４面","５面","説明書（基本事項）","説明書（外皮）","説明書（空調）","説明書（換気）","説明書（照明）","説明書（給湯）","説明書（昇降機）","説明書（太陽光）","説明書（コージェネ）"],"not_rendered":{"charts":0,"images":0,"macros":1,"external_links":0,"defined_names":16,"comments":1,"pivot_tables":0},"unopened":[],"bounds":{"document_bytes":16777216,"sheet_cells":100000,"rows_first":2000,"rows_last":500,"rows_between":2000,"halvings":0,"cell_chars":16384,"cell_head_chars":4096},"cells_cut":0,"cells_raw":0,"read":"whole","date_system":"1900"}

{"sheet":"注意事項等","index":0,"n_rows":12,"n_cols":4,"rows_kept":12,"cut":false,"hidden":false,"merged":[[7,1,7,8],[3,1,3,8]]}
[]
[null,"入力にあたっての注意事項"]
[]
[null,"・赤色のシートは必須、橙色のシートは記載事項に変更が有る場合のみ、\n　青色のシートは計算書の変更を行ったシートのみ御提出ください。"]
[]
[null,"・各シートの黄色の網掛け部分に文字等を入力してください。"]
[]
[null,"・□については、該当箇所をクリックするとチェックされます。\n   チェックされた部分をクリックするとチェックは消えます。"]
[]
[null,"・網掛け",null,"部は他のセルからデータを引用しています。"]
[]
[null,"・SheetのPassWordは”0000”です。"]

{"sheet":"質疑等連絡票","index":1,"n_rows":37,"n_cols":36,"rows_kept":37,"cut":false,"hidden":false,"merged":[[6,1,6,6],[6,7,6,29],[2,8,2,21],[1,0,1,29],[4,1,4,6],[4,7,4,29],[5,1,5,6],[5,7,5,29],[9,1,10,3],[9,4,10,14],[9,15,9,17],[9,19,9,29],[10,15,10,17],[10,19,10,29],[11,1,11,3],[11,4,11,14],[11,15,11,17],[11,19,11,29],[12,1,12,3],[12,5,12,14],[12,15,12,17],[12,19,12,29],[18,1,19,3],[18,4,19,14],[18,15,18,17],[18,19,18,29],[19,15,19,17],[19,19,19,29],[13,2,13,14],[13,15,13,17],[13,19,13,29],[14,1,15,5],[15,6,15,29],[20,4,20,14],[20,15,20,17],[20,19,20,29],[22,2,22,14],[22,15,22,17],[22,19,22,29],[21,1,21,3],[21,5,21,14],[21,15,21,17],[21,19,21,29],[20,1,20,3],[27,1,28,3],[27,4,28,14],[27,15,27,17],[27,19,27,29],[28,15,28,17],[28,19,28,29],[29,1,29,3],[29,4,29,14],[29,15,29,17],[29,19,29,29],[30,1,30,3],[30,5,30,14],[30,15,30,17],[30,19,30,29],[33,22,33,23],[35,0,35,33],[36,1,36,33],[31,2,31,14],[31,15,31,17],[31,19,31,29],[33,15,33,17],[33,19,33,20]]}
[]
["軽微変更該当証明　質疑等連絡先シート"]
[]
["○建築物の概要"]
[null,"建築物の名称"]
[null,"建　築　主　名",null,null,null,null,null,{"$f":"IF('２面'!AU6=0,\"申請書2面を記入して下さい\",'２面'!AV8)","v":"申請書2面を記入して下さい"}]
[null,"建築物の所在地",null,null,null,null,null,{"$f":"IF('３面'!J5=0,\"申請書3面を記入して下さい\",'３面'!J5)","v":"申請書3面を記入して下さい"}]
[]
["●軽微変更該当証明書発行料金請求書の送付先"]
[null,"会社名",null,null,null,null,null,null,null,null,null,null,null,null,null,"フリガナ",null,null,null,{"$f":"ASC(PHONETIC(T11))","v":""}]
[null,null,null,null,null,null,null,null,null,null,null,null,null,null,null,"氏　名"]
[null,"所　属",null,null,null,null,null,null,null,null,null,null,null,null,null,"TEL"]
[null,"住　所",null,null,"〒",null,null,null,null,null,null,null,null,null,null,"FAX"]
[null,null,null,null,null,null,null,null,null,null,null,null,null,null,null,"E-mail"]
[null,"請求書名宛先"]
[]
[]
["●質疑書"]
[null,"会社名",null,null,null,null,null,null,null,null,null,null,null,null,null,"フリガナ",null,null,null,{"$f":"ASC(PHONETIC(T20))","v":""}]
[null,null,null,null,null,null,null,null,null,null,null,null,null,null,null,"氏　名"]
[null,"所　属",null,null,null,null,null,null,null,null,null,null,null,null,null,"TEL"]
[null,"住　所",null,null,"〒",null,null,null,null,null,null,null,null,null,null,"FAX"]
[null,null,null,null,null,null,null,null,null,null,null,null,null,null,null,"E-mail"]
[]
["●軽微変更該当証明書等の返送先"]
[]
[]
[null,"会社名",null,null,null,null,null,null,null,null,null,null,null,null,null,"フリガナ",null,null,null,{"$f":"ASC(PHONETIC(T29))","v":""}]
[null,null,null,null,null,null,null,null,null,null,null,null,null,null,null,"氏　名"]
[null,"所　属",null,null,null,null,null,null,null,null,null,null,null,null,null,"TEL"]
[null,"住　所",null,null,"〒",null,null,null,null,null,null,null,null,null,null,"FAX",null,null,null,null,null,null,null,null,null,null,null,null,null,null,null,null,null,null,null,"上旬"]
[null,null,null,null,null,null,null,null,null,null,null,null,null,null,null,"E-mail",null,null,null,null,null,null,null,null,null,null,null,null,null,null,null,null,null,null,null,"中旬"]
[null,null,null,null,null,null,null,null,null,null,null,null,null,null,null,null,null,null,null,null,null,null,null,null,null,null,null,null,null,null,null,null,null,null,null,"下旬"]
["●軽微変更該当証明書の交付希望時期",null,null,null,null,null,null,null,null,null,null,null,null,null,null,null,null,null,"年",null,null,"月",null,null,"頃"]
[]
["（注意）"]
[null,"　１．各連絡先、送付先及び軽微変更該当証明書の交付ご希望時期（予定）をご記入の上、申請書と併せて御提出ください。"]

{"sheet":"軽微変更該当証明申請書","index":2,"n_rows":41,"n_cols":34,"rows_kept":41,"cut":false,"hidden":false,"merged":[[0,0,0,33],[28,21,28,32],[12,19,12,32],[14,20,14,32],[22,21,22,27],[23,25,23,26],[1,0,1,33],[3,31,3,32],[8,20,8,32],[23,22,23,23],[3,25,3,26],[3,28,3,29],[33,1,35,32],[29,1,29,10],[41,1,41,33],[16,1,18,32],[9,19,9,32],[11,20,11,32],[13,20,13,32],[29,11,29,20],[30,3,30,8],[40,1,40,33],[23,28,23,29],[39,0,39,33],[28,1,28,10],[28,11,28,20],[10,20,10,32]]}
["（第一面）"]
["軽微変更該当証明申請書"]
[]
[null,null,null,null,null,null,null,null,null,null,null,null,null,null,null,null,null,null,null,null,null,null,null,null,"令和",null,null,"年",null,null,"月",null,null,"日"]
[]
["一般財団法人ベターリビング　殿"]
[]
[null,null,null,null,null,null,null,null,null,null,null,null,null,null,null,null,null,null,null,"提出者の住所又は主たる事務所の所在地"]
[]
[null,null,null,null,null,null,null,null,null,null,null,null,null,null,null,null,null,null,null,"提出者の氏名又は名称\n代表者の氏名"]
[]
[]
[null,null,null,null,null,null,null,null,null,null,null,null,null,null,null,null,null,null,null,"設計者氏名"]
[null,null,null,null,null,null,null,null,null,null,null,null,null,null,null,null,null,null,null,null,{"$f":"IF('２面'!M21=\"\",\"２面を記入して下さい\",'２面'!L23)","v":"２面を記入して下さい"}]
[null,null,null,null,null,null,null,null,null,null,null,null,null,null,null,null,null,null,null,null,{"$f":"IF('２面'!M21=\"\",\"２面を記入して下さい\",'２面'!M21)","v":"２面を記入して下さい"}]
[]
[null,"　建築物のエネルギー消費性能の向上に関する法律施行規則第11条の規定により、建築物エネルギー消費性能確保計画（非住宅部分に係る部分に限る。）の変更が同規則第３条（同規則第７条第２項において読み替えて準用する場合を含む。）の軽微な変更に該当していることを証する書面の交付を申請します。この申請書及び添付図書に記載の事項は、事実に相違ありません。"]
[]
[]
[]
[]
[null,null,"【軽微変更する建築物の直前の建築物エネルギー消費性能適合性判定又は軽微変更該当証明】"]
[null,null,"【適合判定通知書又は軽微変更該当証明書番号】",null,null,null,null,null,null,null,null,null,null,null,null,null,null,null,null,null,"第",null,null,null,null,null,null,null,"号"]
[null,null,"【適合判定通知書又は軽微変更該当証明書交付年月日】",null,null,null,null,null,null,null,null,null,null,null,null,null,null,null,null,null,null,{"$f":"Y4","v":"令和"},null,null,"年",null,null,"月",null,null,"日"]
[null,null,"【適合判定通知書又は軽微変更該当証明書交付者】",null,null,null,null,null,null,null,null,null,null,null,null,null,null,null,null,null,"一般財団法人　ベターリビング"]
[null,null,"【軽微な変更の概要】",null,null,null,null,null,null,null,null,null,null,null,null,null,null,null,null,null,"軽微変更概要説明書に記載"]
[]
[null,"（本欄には記入しないでください。）"]
[null,"受付欄",null,null,null,null,null,null,null,null,null,"軽微変更該当証明書番号欄",null,null,null,null,null,null,null,null,null,"決裁欄"]
[null,"年　　月　　日",null,null,null,null,null,null,null,null,null,"年　　月　　日"]
[null,null,"第","CBL-SH-",null,null,null,null,null,"号",null,null,"第",null,null,null,null,null,null,"号"]
[null,null,"係員氏名",null,null,null,null,null,null,null,null,null,"係員氏名"]
[]
[null,"（注意）第二面から第五面までとして建築物のエネルギー消費性能の向上に関する法律施行規則別記様式第一の第二面から第五面までに記載すべき事項を記載した書類を添えてください。ただし、直前の建築物エネルギー消費性能適合性判定又は軽微変更該当証明を当機関で実施している場合、変更に係る部分のみの提出とすることができます。"]
[]
[]
[]
[]
[]
["（注意）"]
[null,"　１．提出者が法人である場合には、代表者の氏名を併せて記載してください。"]

{"sheet":"２面","index":3,"n_rows":79,"n_cols":55,"rows_kept":79,"cut":false,"hidden":false,"merged":[[8,11,8,38],[0,0,0,40],[4,11,4,38],[5,11,5,38],[6,11,6,38],[7,11,7,38],[10,12,10,13],[10,21,10,27],[10,33,10,37],[11,12,11,38],[12,12,12,13],[12,21,12,27],[12,33,12,37],[23,11,23,38],[13,11,13,38],[14,11,14,38],[15,11,15,38],[16,11,16,38],[19,12,19,13],[19,21,19,27],[19,33,19,37],[20,12,20,38],[21,12,21,13],[21,21,21,27],[21,33,21,37],[22,11,22,38],[32,11,32,38],[24,11,24,38],[25,11,25,38],[26,11,26,38],[28,12,28,13],[28,21,28,27],[28,33,28,37],[29,12,29,38],[30,12,30,13],[30,21,30,27],[30,33,30,37],[31,11,31,38],[41,11,41,38],[33,11,33,38],[34,11,34,38],[35,11,35,38],[37,12,37,13],[37,21,37,27],[37,33,37,37],[38,12,38,38],[39,12,39,13],[39,21,39,27],[39,33,39,37],[40,11,40,38],[50,11,50,38],[42,11,42,38],[43,11,43,38],[44,11,44,38],[46,12,46,13],[46,21,46,27],[46,33,46,37],[47,12,47,38],[48,12,48,13],[48,21,48,27],[48,33,48,37],[49,11,49,38],[61,0,61,35],[51,11,51,38],[52,11,52,38],[53,11,53,38],[55,12,55,37],[56,12,56,37],[58,2,59,38]]}
["(第二面)"]
[]
[null,"[建築主等に関する事項]"]
[null,"【1.建築主】"]
[null,null,"【イ.氏名のフリガナ】",null,null,null,null,null,null,null,null,{"$f":"ASC(PHONETIC(L6))","v":""}]
[null,null,"【ロ.氏名】",null,null,null,null,null,null,null,null,null,null,null,null,null,null,null,null,null,null,null,null,null,null,null,null,null,null,null,null,null,null,null,null,null,null,null,null,null,null,null,null,{"$f":"IF(L6=\"\",0,1)","v":0},null,null,{"$f":"AR6+AS6+AT6","v":0},{"$f":"IF(AU6=1,AR7,\"\")","v":""}]
[null,null,"【ハ.郵便番号】",null,null,null,null,null,null,null,null,null,null,null,null,null,null,null,null,null,null,null,null,null,null,null,null,null,null,null,null,null,null,null,null,null,null,null,null,null,null,null,null,{"$f":"L6","v":0},"","",null,{"$f":"IF(AU6>1,AR7&\"　他 \",\"\")","v":""}]
[null,null,"【ニ.住所】",null,null,null,null,null,null,null,null,null,null,null,null,null,null,null,null,null,null,null,null,null,null,null,null,null,null,null,null,null,null,null,null,null,null,null,null,null,null,null,null,null,null,null,null,{"$f":"AV6&AV7","v":""}]
[null,null,"【ホ.電話番号】"]
[null,"【2.代理者】"]
[null,null,"【イ.資格】",null,null,null,null,null,null,null,null,"（",null,null,"）","建築士",null,null,null,null,"（",null,null,null,null,null,null,null,"）","登録",null,null,null,null,null,null,null,null,"号"]
[null,null,"【ロ.氏名】"]
[null,null,"【ハ.建築士事務所名】",null,null,null,null,null,null,null,null,"（",null,null,"）","建築士事務所",null,null,null,null,"（",null,null,null,null,null,null,null,"）","知事登録",null,null,null,null,null,null,null,null,"号"]
[]
[null,null,"【ニ.郵便番号】"]
[null,null,"【ホ.所在地】"]
[null,null,"【ヘ.電話番号】"]
[null,"【3.設計者等】"]
[null,"（代表となる設計者）"]
[null,null,"【イ.資格】",null,null,null,null,null,null,null,null,"（",null,null,"）","建築士",null,null,null,null,"（",{"$f":"IF($BC$25=1,V11,\"\")","v":""},null,null,null,null,null,null,"）","登録",null,null,null,{"$f":"IF($BC$25=1,AH11,\"\")","v":""},null,null,null,null,"号"]
[null,null,"【ロ.氏名】",null,null,null,null,null,null,null,null,null,{"$f":"IF($BC$25=1,M12,\"\")","v":""}]
[null,null,"【ハ.建築士事務所名】",null,null,null,null,null,null,null,null,"（",null,null,"）","建築士事務所",null,null,null,null,"（",{"$f":"IF($BC$25=1,V13,\"\")","v":""},null,null,null,null,null,null,"）","知事登録",null,null,null,{"$f":"IF($BC$25=1,AH13,\"\")","v":""},null,null,null,null,"号"]
[null,null,null,null,null,null,null,null,null,null,null,{"$f":"IF($BC$25=1,L14,\"\")","v":""}]
[null,null,"【ニ.郵便番号】",null,null,null,null,null,null,null,null,{"$f":"IF($BC$25=1,L15,\"\")","v":""}]
[null,null,"【ホ.所在地】",null,null,null,null,null,null,null,null,{"$f":"IF($BC$25=1,L16,\"\")","v":""},null,null,null,null,null,null,null,null,null,null,null,null,null,null,null,null,null,null,null,null,null,null,null,null,null,null,null,null,null,null,null,null,null,null,null,null,null,null,null,null,null,false,{"$f":"BB25*1","v":0}]
[null,null,"【ヘ.電話番号】",null,null,null,null,null,null,null,null,{"$f":"IF($BC$25=1,L17,\"\")","v":""}]
[null,null,"【ト.作成した設計図書】"]
[null,"（その他の設計者）"]
[null,null,"【イ.資格】",null,null,null,null,null,null,null,null,"（",null,null,"）","建築士",null,null,null,null,"（",null,null,null,null,null,null,null,"）","登録",null,null,null,null,null,null,null,null,"号"]
[null,null,"【ロ.氏名】"]
[null,null,"【ハ.建築士事務所名】",null,null,null,null,null,null,null,null,"（",null,null,"）","建築士事務所",null,null,null,null,"（",{"$f":"IF($BC$33=1,V22,\"\")","v":""},null,null,null,null,null,null,"）","知事登録",null,null,null,{"$f":"IF($BC$33=1,AH22,\"\")","v":""},null,null,null,null,"号"]
[null,null,null,null,null,null,null,null,null,null,null,{"$f":"IF($BC$33=1,L23,\"\")","v":""}]
[null,null,"【ニ.郵便番号】",null,null,null,null,null,null,null,null,{"$f":"IF($BC$33=1,L24,\"\")","v":""},null,null,null,null,null,null,null,null,null,null,null,null,null,null,null,null,null,null,null,null,null,null,null,null,null,null,null,null,null,null,null,null,null,null,null,null,null,null,null,null,null,false,{"$f":"BB33*1","v":0}]
[null,null,"【ホ.所在地】",null,null,null,null,null,null,null,null,{"$f":"IF($BC$33=1,L25,\"\")","v":""}]
[null,null,"【ヘ.電話番号】",null,null,null,null,null,null,null,null,{"$f":"IF($BC$33=1,L26,\"\")","v":""}]
[null,null,"【ト.作成した設計図書】"]
[]
[null,null,"【イ.資格】",null,null,null,null,null,null,null,null,"（",null,null,"）","建築士",null,null,null,null,"（",null,null,null,null,null,null,null,"）","登録",null,null,null,null,null,null,null,null,"号"]
[null,null,"【ロ.氏名】"]
[null,null,"【ハ.建築士事務所名】",null,null,null,null,null,null,null,null,"（",null,null,"）","建築士事務所",null,null,null,null,"（",{"$f":"IF($BC$42=1,V31,\"\")","v":""},null,null,null,null,null,null,"）","知事登録",null,null,null,{"$f":"IF($BC$42=1,AH31,\"\")","v":""},null,null,null,null,"号"]
[null,null,null,null,null,null,null,null,null,null,null,{"$f":"IF($BC$42=1,L32,\"\")","v":""}]
[null,null,"【ニ.郵便番号】",null,null,null,null,null,null,null,null,{"$f":"IF($BC$42=1,L33,\"\")","v":""},null,null,null,null,null,null,null,null,null,null,null,null,null,null,null,null,null,null,null,null,null,null,null,null,null,null,null,null,null,null,null,null,null,null,null,null,null,null,null,null,null,false,{"$f":"BB42*1","v":0}]
[null,null,"【ホ.所在地】",null,null,null,null,null,null,null,null,{"$f":"IF($BC$42=1,L34,\"\")","v":""}]
[null,null,"【ヘ.電話番号】",null,null,null,null,null,null,null,null,{"$f":"IF($BC$42=1,L35,\"\")","v":""}]
[null,null,"【ト.作成した設計図書】"]
[]
[null,null,"【イ.資格】",null,null,null,null,null,null,null,null,"（",null,null,"）","建築士",null,null,null,null,"（",null,null,null,null,null,null,null,"）","登録",null,null,null,null,null,null,null,null,"号"]
[null,null,"【ロ.氏名】"]
[null,null,"【ハ.建築士事務所名】",null,null,null,null,null,null,null,null,"（",null,null,"）","建築士事務所",null,null,null,null,"（",{"$f":"IF($BC$51=1,V40,\"\")","v":""},null,null,null,null,null,null,"）","知事登録",null,null,null,{"$f":"IF($BC$51=1,AH40,\"\")","v":""},null,null,null,null,"号"]
[null,null,null,null,null,null,null,null,null,null,null,{"$f":"IF($BC$51=1,L41,\"\")","v":""}]
[null,null,"【ニ.郵便番号】",null,null,null,null,null,null,null,null,{"$f":"IF($BC$51=1,L42,\"\")","v":""},null,null,null,null,null,null,null,null,null,null,null,null,null,null,null,null,null,null,null,null,null,null,null,null,null,null,null,null,null,null,null,null,null,null,null,null,null,null,null,null,null,false,{"$f":"BB51*1","v":0}]
[null,null,"【ホ.所在地】",null,null,null,null,null,null,null,null,{"$f":"IF($BC$51=1,L43,\"\")","v":""}]
[null,null,"【ヘ.電話番号】",null,null,null,null,null,null,null,null,{"$f":"IF($BC$51=1,L44,\"\")","v":""}]
[null,null,"【ト.作成した設計図書】"]
[null,"【4.確認の申請】"]
[null,null,null,null,null,null,null,null,null,null,null,"（",null,null,null,null,null,null,null,null,null,null,null,null,null,null,null,null,null,null,null,null,null,null,null,null,null,null,"）"]
[null,null,null,null,null,null,null,null,null,null,null,"（",null,null,null,null,null,null,null,null,null,null,null,null,null,null,null,null,null,null,null,null,null,null,null,null,null,null,"）"]
[null,"【5.備考】"]
[null,null,{"$f":"IF(質疑等連絡票!H5=\"\",\"\",質疑等連絡票!H5)","v":""}]
[]
[]
["（注意）"]
[null,"１．第二面は省エネ適合性判定の時点から変更がある場合のみご提出ください。"]
[null,"２．建築主が２者以上の場合は、【１．建築主】の欄は代表となる建築主について記入し、別紙に他の建築主について記入して"]
[null,null,"添えてください。"]
[null,"３．【１．建築主】の欄は、建築主が法人の場合は、「イ」は法人の名称及び代表者の氏名のフリガナを、「ロ」は法人の名称及び"]
[null,null,"代表者の氏名を、「ニ」は法人の所在地を、建築主がマンションの管理を行う建物の区分所有等に関する法律第３条"]
[null,null,"又は第65条に規定する団体の場合は、「イ」は団体の名称及び代表者の氏名のフリガナを、「ロ」は団体の名称及び"]
[null,null,"代表者の氏名を、「ニ」は団体の所在地を記入してください。"]
[null,"４．【２．代理者】の欄は、建築主からの委任を受けて提出をする場合に記入してください。"]
[null,"５．【２．代理者】及び【３．設計者】の欄は、代理者又は設計者が建築士事務所に属しているときは、その名称を書き、建築士事務所に属して"]
[null,null,"いないときは、所在地はそれぞれ代理者又は設計者の住所を書いてください。"]
[null,"６．【３．設計者】の欄は、代表となる設計者及び提出に係る建築物のエネルギー消費性能確保計画に係る他のすべての設計者について記入"]
[null,null,"してください。"]
[null,"７．【４．確認の申請】の欄は、該当するチェックボックスに「」マークを入れ、申請済の場合には、申請をした市町村若しくは都道府県名又は"]
[null,null,"指定確認検査機関の名称及び事務所の所在地を記入してください。未申請の場合には、申請する予定の市町村若しくは"]
[null,null,"都道府県名又は指定確認検査機関の名称及び事務所の所在地を記入し、申請をした後に、遅滞なく、申請をした旨"]
[null,null,"（申請先を変更した場合においては、申請をした市町村若しくは都道府県名又は指定確認検査機関の名称及び事務所の"]
[null,null,"所在地を含む。）を届け出てください。"]

{"sheet":"３面","index":4,"n_rows":47,"n_cols":42,"rows_kept":47,"cut":false,"hidden":false,"merged":[[31,12,31,14],[31,16,31,17],[31,19,31,20],[0,0,0,37],[4,9,4,36],[7,9,7,13],[10,9,10,13],[13,9,13,13],[16,13,16,15],[16,23,16,25],[18,7,20,37],[21,7,23,37],[25,9,25,15],[25,20,25,26],[28,11,28,13],[34,12,34,14],[34,16,34,17],[34,19,34,20],[38,2,40,36],[43,0,43,33]]}
["(第三面)"]
[]
[null,"[建築物及びその敷地に関する事項]"]
[]
[null,"【1.地名地番】"]
[]
[]
[null,"【2.敷地面積】",null,null,null,null,null,null,null,null,null,null,null,null,"m2"]
[]
[]
[null,"【3.建築面積】",null,null,null,null,null,null,null,null,null,null,null,null,"m2"]
[]
[]
[null,"【4.延べ面積】",null,null,null,null,null,null,null,null,null,null,null,null,"m2"]
[]
[]
[null,"【5.建築物の階数】",null,null,null,null,null,null,null,"（地上）",null,null,null,null,null,null,"階",null,null,"（地下）",null,null,null,null,null,null,"階"]
[]
[null,null,null,null,null,null,null,null,null,null,null,null,null,null,null,null,null,null,null,null,null,null,null,null,null,null,null,null,null,null,null,null,null,null,null,null,null,null,null,null,"非住宅",false]
[null,"【6.建築物の用途】",null,null,null,null,null,null,null,null,null,null,null,null,null,null,null,null,null,null,null,null,null,null,null,null,null,null,null,null,null,null,null,null,null,null,null,null,null,null,"複合",false]
[]
[]
[null,"【7.工事種別】",null,null,null,null,null,null,null,null,null,null,null,null,null,null,null,null,null,null,null,null,null,null,null,null,null,null,null,null,null,null,null,null,null,null,null,null,null,null,"新築",false]
[null,null,null,null,null,null,null,null,null,null,null,null,null,null,null,null,null,null,null,null,null,null,null,null,null,null,null,null,null,null,null,null,null,null,null,null,null,null,null,null,"増築",false]
[null,null,null,null,null,null,null,null,null,null,null,null,null,null,null,null,null,null,null,null,null,null,null,null,null,null,null,null,null,null,null,null,null,null,null,null,null,null,null,null,"改築",false]
[null,"【8.構造】",null,null,null,null,null,null,null,null,null,null,null,null,null,null,"造　一部",null,null,null,null,null,null,null,null,null,null,"造"]
[]
[]
[null,"【9.該当する地域の区分】",null,null,null,null,null,null,null,null,null,null,null,null,"地域"]
[]
[]
[null,"【10.工事着手予定年月日】",null,null,null,null,null,null,null,null,null,null,null,null,null,"年",null,null,"月",null,null,"日"]
[]
[]
[null,"【11.工事完了予定年月日】",null,null,null,null,null,null,null,null,null,null,null,null,null,"年",null,null,"月",null,null,"日"]
[]
[]
[null,"【12.備考】"]
[]
[]
[]
[]
[]
["（注意）"]
[null,"１．第三面は省エネ適合性判定の時点から変更がある場合のみご提出ください。"]
[null,"２．【６．建築物の用途】及び【７．工事種別】の欄は、該当するチェックボックスに「」マークを入れてください。"]
[null,"３．【９．該当する地域の区分】の欄において、「地域の区分」は、基準省令第１条第１項第２号イ⑴の地域の区分をいいます。"]

{"sheet":"４面","index":5,"n_rows":50,"n_cols":3,"rows_kept":50,"cut":false,"hidden":false,"merged":[[0,0,0,38],[4,1,23,36],[25,1,44,36],[46,0,46,33]]}
["(第四面)"]
[]
[]
[null,"【1.付近見取り図】"]
[]
[]
[]
[]
[]
[]
[]
[]
[]
[]
[]
[]
[]
[]
[]
[]
[]
[]
[]
[]
[null,"【2.配置図】"]
[]
[]
[]
[]
[]
[]
[]
[]
[]
[]
[]
[]
[]
[]
[]
[]
[]
[]
[]
[]
[]
["（注意）"]
[null,"１．付近見取図には、方位、道路及び目標となる地物を明示してください。"]
[null,"２．配置図には、縮尺、方位、敷地境界線、敷地内における建築物の位置、計画に係る建築物と他の建築物との別並びに敷地の接する"]
[null,null,"道路の位置及び幅員を明示してください。"]

{"sheet":"５面","index":6,"n_rows":51,"n_cols":46,"rows_kept":51,"cut":false,"hidden":false,"merged":[[0,0,0,37],[4,9,4,36],[7,11,7,16],[7,21,7,31],[8,11,8,15],[8,21,8,25],[8,28,12,37],[9,11,9,15],[9,21,9,25],[10,11,10,15],[37,0,37,33],[10,21,10,25],[11,11,11,15],[11,21,11,25],[12,11,12,15],[12,21,12,25],[16,10,16,14],[16,16,16,17],[16,19,16,20],[22,16,22,21],[23,16,23,21],[24,7,24,10],[28,4,28,32],[32,2,34,36]]}
["(第五面)"]
[]
[null,"[非住宅部分に関する事項]"]
[]
[null,"【1.非住宅部分の用途】"]
[]
[]
[null,"【2.非住宅部分の床面積】",null,null,null,null,null,null,null,null,"（","床面積",null,null,null,null,null,"）",null,null,"（","開放部分を除いた部分の床面積",null,null,null,null,null,null,null,null,null,null,"）"]
[null,null,"【イ．新築】",null,null,null,null,null,null,null,"（",null,null,null,null,null,"m2）",null,null,null,"（",null,null,null,null,null,"m2）",null,{"$f":"AR9&AR10&AR12","v":""},null,null,null,null,null,null,null,null,null,null,null,null,"新築",{"$f":"IF(L9=\"\",FALSE,TRUE)","v":false},{"$f":"IF((AQ9=TRUE)*AND('３面'!AP23=FALSE),\"3面【7.工事種別】のチェックがありません。\",\"\")","v":""}]
[null,null,"【ロ．増築】",null,null,null,null,null,null,"全体","（",null,null,null,null,null,"m2）",null,null,null,"（",null,null,null,null,null,"m2）",null,null,null,null,null,null,null,null,null,null,null,null,null,null,"増築",{"$f":"IF(L10=\"\",FALSE,TRUE)","v":false},{"$f":"IF((AQ10=TRUE)*AND('３面'!AP24=FALSE),\"3面【7.工事種別】のチェックがありません。\",\"\")","v":""}]
[null,null,null,null,null,null,null,"増築部分",null,null,"（",null,null,null,null,null,"m2）",null,null,null,"（",null,null,null,null,null,"m2）"]
[null,null,"【ハ．改築】",null,null,null,null,null,null,"全体","（",null,null,null,null,null,"m2）",null,null,null,"（",null,null,null,null,null,"m2）",null,null,null,null,null,null,null,null,null,null,null,null,null,null,"改築",{"$f":"IF(L12=\"\",FALSE,TRUE)","v":false},{"$f":"IF((AQ12=TRUE)*AND('３面'!AP25=FALSE),\"3面【7.工事種別】のチェックがありません。\",\"\")","v":""}]
[null,null,null,null,null,null,null,"改築部分",null,null,"（",null,null,null,null,null,"m2）",null,null,null,"（",null,null,null,null,null,"m2）"]
[]
[]
[null,"【3.基準省令附則第３条の適用の有無】"]
[null,null,null,"竣工年月日",null,null,null,null,null,null,null,null,null,null,null,"年",null,null,"月",null,null,"日"]
[]
[]
[null,"【4.非住宅部分のエネルギー消費性能】"]
[null,null,null,"基準省令第１条第１項第１号イの基準",null,null,null,null,null,null,null,null,null,null,null,null,null,null,"基準省令第１条第１項第１号ロの基準",null,null,null,null,null,null,null,null,null,null,null,null,null,null,null,null,null,null,null,null,null,null,null,null,false,null,false]
[]
[null,null,null,"基準一次エネルギー消費量",null,null,null,null,null,null,null,null,null,null,null,null,null,null,null,null,null,null,"GJ/年"]
[null,null,null,"設計一次エネルギー消費量",null,null,null,null,null,null,null,null,null,null,null,null,null,null,null,null,null,null,"GJ/年"]
[null,null,null,{"$f":"IF(AR21=TRUE,\"ＢＥＩ\",IF(AT21=TRUE,\"ＢＥＩm\",\"基準選択\"))","v":"基準選択"},null,null,"（",null,null,null,null,"）"]
[]
[null,null,null,"国土交通大臣が認める方法及びその結果"]
[]
[null,null,null,"（",null,null,null,null,null,null,null,null,null,null,null,null,null,null,null,null,null,null,null,null,null,null,null,null,null,null,null,null,null,"）"]
[]
[]
[null,"【5.備考】"]
[]
[]
[]
[]
[]
["（注意）"]
[null,"１．第五面は省エネ適合性判定の時点から変更がある場合のみご提出ください。"]
[null,"２．【１．非住宅部分の用途】の欄は、建築基準法施行規則（昭和25年建設省令第40号）別紙の表の用途の区分に従い記入して下さい。"]
[null,"３．【２．非住宅部分の床面積】の欄は、第三面の【７．工事種別】の欄の工事種別に応じ、非住宅部分の床面積を記載して下さい。増築"]
[null,null,"又は改築の場合は、延べ面積を併せて記載して下さい。"]
[null,"４．【２．非住宅部分の床面積】の欄において、「床面積」は、単に非住宅部分の床面積をいい、「開放部分を除いた部分の床面積」は、"]
[null,null,"建築物のエネルギー消費性能の向上に関する法律施行令第４条第１項に規定する床面積をいいます。"]
[null,"５．【３．基準省令附則第３条の適用の有無】の欄は、該当するチェックボックスに「」マークを入れ、「有」の場合は申請に係る建築物の"]
[null,null,"新築工事の竣工年月日を記載してください。"]
[null,"６．【４．非住宅部分のエネルギー消費性能】の欄は、「基準省令第１条第１項第１号イの基準」、「基準省令第１条第１号ロの基準」又は"]
[null,null,"「国土交通大臣が認める方法及びその結果」の該当するチェックボックスに、「✔」マークを入れた上で記載してください。「ＢＥＩ」につ"]
[null,null,"いては、小数点第二位未満を切り上げた数値を記載してください。"]
[null,"７．【４．非住宅部分のエネルギー消費性能】の欄において、「ＢＥＩ」は、設計一次エネルギー消費量（その他一次エネルギー消費量を"]
[null,null,"除く。）を基準一次エネルギー消費量（その他一次エネルギー消費量を除く。）で除したものをいいます。"]

{"sheet":"説明書（基本事項）","index":7,"n_rows":37,"n_cols":31,"rows_kept":37,"cut":false,"hidden":false,"merged":[[4,1,5,23],[4,24,4,28],[5,24,5,28],[0,0,0,33],[2,1,2,32],[3,29,3,32],[3,24,3,28],[3,1,3,23],[6,1,7,23],[6,24,6,28],[7,24,7,28],[8,1,9,23],[8,24,8,28],[9,24,9,28],[10,1,11,23],[10,24,10,28],[11,24,11,28],[12,1,13,23],[12,24,12,28],[13,24,13,28],[14,1,15,23],[14,24,14,28],[15,24,15,28],[16,1,17,23],[16,24,16,28],[17,24,17,28],[22,1,23,23],[22,24,22,28],[23,24,23,28],[34,0,34,33],[18,1,19,23],[18,24,18,28],[19,24,19,28],[20,1,21,23],[20,24,20,28],[21,24,21,28],[24,1,25,23],[24,24,24,28],[25,24,25,28],[26,1,27,23],[26,24,26,28],[27,24,27,28],[28,1,29,23],[28,24,28,28],[29,24,29,28],[30,1,31,23],[30,24,30,28],[31,24,31,28]]}
["軽微変更概要説明書（モデル建物法）"]
["［基本情報に係る変更関係］"]
[null,"　モデル建物法入力シート（様式Ａ）に係る内容について、以下の事項を変更します。"]
[null,"変更事項",null,null,null,null,null,null,null,null,null,null,null,null,null,null,null,null,null,null,null,null,null,null,"図面名",null,null,null,null,"確認欄※"]
[null,null,null,null,null,null,null,null,null,null,null,null,null,null,null,null,null,null,null,null,null,null,null,null,null,null,null,null,null,"□","確認"]
[null,null,null,null,null,null,null,null,null,null,null,null,null,null,null,null,null,null,null,null,null,null,null,null,null,null,null,null,null,"□","未"]
[null,null,null,null,null,null,null,null,null,null,null,null,null,null,null,null,null,null,null,null,null,null,null,null,null,null,null,null,null,"□","確認"]
[null,null,null,null,null,null,null,null,null,null,null,null,null,null,null,null,null,null,null,null,null,null,null,null,null,null,null,null,null,"□","未"]
[null,null,null,null,null,null,null,null,null,null,null,null,null,null,null,null,null,null,null,null,null,null,null,null,null,null,null,null,null,"□","確認"]
[null,null,null,null,null,null,null,null,null,null,null,null,null,null,null,null,null,null,null,null,null,null,null,null,null,null,null,null,null,"□","未"]
[null,null,null,null,null,null,null,null,null,null,null,null,null,null,null,null,null,null,null,null,null,null,null,null,null,null,null,null,null,"□","確認"]
[null,null,null,null,null,null,null,null,null,null,null,null,null,null,null,null,null,null,null,null,null,null,null,null,null,null,null,null,null,"□","未"]
[null,null,null,null,null,null,null,null,null,null,null,null,null,null,null,null,null,null,null,null,null,null,null,null,null,null,null,null,null,"□","確認"]
[null,null,null,null,null,null,null,null,null,null,null,null,null,null,null,null,null,null,null,null,null,null,null,null,null,null,null,null,null,"□","未"]
[null,null,null,null,null,null,null,null,null,null,null,null,null,null,null,null,null,null,null,null,null,null,null,null,null,null,null,null,null,"□","確認"]
[null,null,null,null,null,null,null,null,null,null,null,null,null,null,null,null,null,null,null,null,null,null,null,null,null,null,null,null,null,"□","未"]
[null,null,null,null,null,null,null,null,null,null,null,null,null,null,null,null,null,null,null,null,null,null,null,null,null,null,null,null,null,"□","確認"]
[null,null,null,null,null,null,null,null,null,null,null,null,null,null,null,null,null,null,null,null,null,null,null,null,null,null,null,null,null,"□","未"]
[null,null,null,null,null,null,null,null,null,null,null,null,null,null,null,null,null,null,null,null,null,null,null,null,null,null,null,null,null,"□","確認"]
[null,null,null,null,null,null,null,null,null,null,null,null,null,null,null,null,null,null,null,null,null,null,null,null,null,null,null,null,null,"□","未"]
[null,null,null,null,null,null,null,null,null,null,null,null,null,null,null,null,null,null,null,null,null,null,null,null,null,null,null,null,null,"□","確認"]
[null,null,null,null,null,null,null,null,null,null,null,null,null,null,null,null,null,null,null,null,null,null,null,null,null,null,null,null,null,"□","未"]
[null,null,null,null,null,null,null,null,null,null,null,null,null,null,null,null,null,null,null,null,null,null,null,null,null,null,null,null,null,"□","確認"]
[null,null,null,null,null,null,null,null,null,null,null,null,null,null,null,null,null,null,null,null,null,null,null,null,null,null,null,null,null,"□","未"]
[null,null,null,null,null,null,null,null,null,null,null,null,null,null,null,null,null,null,null,null,null,null,null,null,null,null,null,null,null,"□","確認"]
[null,null,null,null,null,null,null,null,null,null,null,null,null,null,null,null,null,null,null,null,null,null,null,null,null,null,null,null,null,"□","未"]
[null,null,null,null,null,null,null,null,null,null,null,null,null,null,null,null,null,null,null,null,null,null,null,null,null,null,null,null,null,"□","確認"]
[null,null,null,null,null,null,null,null,null,null,null,null,null,null,null,null,null,null,null,null,null,null,null,null,null,null,null,null,null,"□","未"]
[null,null,null,null,null,null,null,null,null,null,null,null,null,null,null,null,null,null,null,null,null,null,null,null,null,null,null,null,null,"□","確認"]
[null,null,null,null,null,null,null,null,null,null,null,null,null,null,null,null,null,null,null,null,null,null,null,null,null,null,null,null,null,"□","未"]
[null,null,null,null,null,null,null,null,null,null,null,null,null,null,null,null,null,null,null,null,null,null,null,null,null,null,null,null,null,"□","確認"]
[null,null,null,null,null,null,null,null,null,null,null,null,null,null,null,null,null,null,null,null,null,null,null,null,null,null,null,null,null,"□","未"]
[]
[]
["（注意）"]
[null,"１．計画変更に係る変更事由は記載することができませんのでご注意ください。"]
[null,"２．※欄は判定機関の記入欄となります。"]

{"sheet":"説明書（外皮）","index":8,"n_rows":37,"n_cols":31,"rows_kept":37,"cut":false,"hidden":false,"merged":[[4,1,5,23],[4,24,4,28],[5,24,5,28],[0,0,0,33],[2,1,2,32],[3,1,3,23],[3,24,3,28],[3,29,3,32],[6,1,7,23],[6,24,6,28],[7,24,7,28],[8,1,9,23],[8,24,8,28],[9,24,9,28],[10,1,11,23],[10,24,10,28],[11,24,11,28],[12,1,13,23],[12,24,12,28],[13,24,13,28],[14,1,15,23],[14,24,14,28],[15,24,15,28],[16,1,17,23],[16,24,16,28],[17,24,17,28],[18,1,19,23],[18,24,18,28],[19,24,19,28],[20,1,21,23],[20,24,20,28],[21,24,21,28],[22,1,23,23],[22,24,22,28],[23,24,23,28],[24,1,25,23],[24,24,24,28],[25,24,25,28],[30,1,31,23],[30,24,30,28],[31,24,31,28],[34,0,34,33],[26,1,27,23],[26,24,26,28],[27,24,27,28],[28,1,29,23],[28,24,28,28],[29,24,29,28]]}
["軽微変更概要説明書（モデル建物法）"]
["［外皮等に係る変更関係］"]
[null,"　モデル建物法入力シート（様式Ｂ１～Ｂ３）に係る内容について、以下の事項を変更します。"]
[null,"変更事項",null,null,null,null,null,null,null,null,null,null,null,null,null,null,null,null,null,null,null,null,null,null,"図面名",null,null,null,null,"確認欄※"]
[null,null,null,null,null,null,null,null,null,null,null,null,null,null,null,null,null,null,null,null,null,null,null,null,null,null,null,null,null,"□","確認"]
[null,null,null,null,null,null,null,null,null,null,null,null,null,null,null,null,null,null,null,null,null,null,null,null,null,null,null,null,null,"□","未"]
[null,null,null,null,null,null,null,null,null,null,null,null,null,null,null,null,null,null,null,null,null,null,null,null,null,null,null,null,null,"□","確認"]
[null,null,null,null,null,null,null,null,null,null,null,null,null,null,null,null,null,null,null,null,null,null,null,null,null,null,null,null,null,"□","未"]
[null,null,null,null,null,null,null,null,null,null,null,null,null,null,null,null,null,null,null,null,null,null,null,null,null,null,null,null,null,"□","確認"]
[null,null,null,null,null,null,null,null,null,null,null,null,null,null,null,null,null,null,null,null,null,null,null,null,null,null,null,null,null,"□","未"]
[null,null,null,null,null,null,null,null,null,null,null,null,null,null,null,null,null,null,null,null,null,null,null,null,null,null,null,null,null,"□","確認"]
[null,null,null,null,null,null,null,null,null,null,null,null,null,null,null,null,null,null,null,null,null,null,null,null,null,null,null,null,null,"□","未"]
[null,null,null,null,null,null,null,null,null,null,null,null,null,null,null,null,null,null,null,null,null,null,null,null,null,null,null,null,null,"□","確認"]
[null,null,null,null,null,null,null,null,null,null,null,null,null,null,null,null,null,null,null,null,null,null,null,null,null,null,null,null,null,"□","未"]
[null,null,null,null,null,null,null,null,null,null,null,null,null,null,null,null,null,null,null,null,null,null,null,null,null,null,null,null,null,"□","確認"]
[null,null,null,null,null,null,null,null,null,null,null,null,null,null,null,null,null,null,null,null,null,null,null,null,null,null,null,null,null,"□","未"]
[null,null,null,null,null,null,null,null,null,null,null,null,null,null,null,null,null,null,null,null,null,null,null,null,null,null,null,null,null,"□","確認"]
[null,null,null,null,null,null,null,null,null,null,null,null,null,null,null,null,null,null,null,null,null,null,null,null,null,null,null,null,null,"□","未"]
[null,null,null,null,null,null,null,null,null,null,null,null,null,null,null,null,null,null,null,null,null,null,null,null,null,null,null,null,null,"□","確認"]
[null,null,null,null,null,null,null,null,null,null,null,null,null,null,null,null,null,null,null,null,null,null,null,null,null,null,null,null,null,"□","未"]
[null,null,null,null,null,null,null,null,null,null,null,null,null,null,null,null,null,null,null,null,null,null,null,null,null,null,null,null,null,"□","確認"]
[null,null,null,null,null,null,null,null,null,null,null,null,null,null,null,null,null,null,null,null,null,null,null,null,null,null,null,null,null,"□","未"]
[null,null,null,null,null,null,null,null,null,null,null,null,null,null,null,null,null,null,null,null,null,null,null,null,null,null,null,null,null,"□","確認"]
[null,null,null,null,null,null,null,null,null,null,null,null,null,null,null,null,null,null,null,null,null,null,null,null,null,null,null,null,null,"□","未"]
[null,null,null,null,null,null,null,null,null,null,null,null,null,null,null,null,null,null,null,null,null,null,null,null,null,null,null,null,null,"□","確認"]
[null,null,null,null,null,null,null,null,null,null,null,null,null,null,null,null,null,null,null,null,null,null,null,null,null,null,null,null,null,"□","未"]
[null,null,null,null,null,null,null,null,null,null,null,null,null,null,null,null,null,null,null,null,null,null,null,null,null,null,null,null,null,"□","確認"]
[null,null,null,null,null,null,null,null,null,null,null,null,null,null,null,null,null,null,null,null,null,null,null,null,null,null,null,null,null,"□","未"]
[null,null,null,null,null,null,null,null,null,null,null,null,null,null,null,null,null,null,null,null,null,null,null,null,null,null,null,null,null,"□","確認"]
[null,null,null,null,null,null,null,null,null,null,null,null,null,null,null,null,null,null,null,null,null,null,null,null,null,null,null,null,null,"□","未"]
[null,null,null,null,null,null,null,null,null,null,null,null,null,null,null,null,null,null,null,null,null,null,null,null,null,null,null,null,null,"□","確認"]
[null,null,null,null,null,null,null,null,null,null,null,null,null,null,null,null,null,null,null,null,null,null,null,null,null,null,null,null,null,"□","未"]
[]
[]
["（注意）"]
[null,"１．計画変更に係る変更事由は記載することができませんのでご注意ください。"]
[null,"２．※欄は判定機関の記入欄となります。"]

{"sheet":"説明書（空調）","index":9,"n_rows":37,"n_cols":31,"rows_kept":37,"cut":false,"hidden":false,"merged":[[4,1,5,23],[4,24,4,28],[5,24,5,28],[0,0,0,33],[2,1,2,32],[3,1,3,23],[3,24,3,28],[3,29,3,32],[6,1,7,23],[6,24,6,28],[7,24,7,28],[8,1,9,23],[8,24,8,28],[9,24,9,28],[10,1,11,23],[10,24,10,28],[11,24,11,28],[12,1,13,23],[12,24,12,28],[13,24,13,28],[14,1,15,23],[14,24,14,28],[15,24,15,28],[16,1,17,23],[16,24,16,28],[17,24,17,28],[18,1,19,23],[18,24,18,28],[19,24,19,28],[20,1,21,23],[20,24,20,28],[21,24,21,28],[22,1,23,23],[22,24,22,28],[23,24,23,28],[24,1,25,23],[24,24,24,28],[25,24,25,28],[30,1,31,23],[30,24,30,28],[31,24,31,28],[34,0,34,33],[26,1,27,23],[26,24,26,28],[27,24,27,28],[28,1,29,23],[28,24,28,28],[29,24,29,28]]}
["軽微変更概要説明書（モデル建物法）"]
["［空調設備等に係る変更関係］"]
[null,"　モデル建物法入力シート（様式Ｃ１～Ｃ４）に係る内容について、以下の事項を変更します。"]
[null,"変更事項",null,null,null,null,null,null,null,null,null,null,null,null,null,null,null,null,null,null,null,null,null,null,"図面名",null,null,null,null,"確認欄※"]
[null,null,null,null,null,null,null,null,null,null,null,null,null,null,null,null,null,null,null,null,null,null,null,null,null,null,null,null,null,"□","確認"]
[null,null,null,null,null,null,null,null,null,null,null,null,null,null,null,null,null,null,null,null,null,null,null,null,null,null,null,null,null,"□","未"]
[null,null,null,null,null,null,null,null,null,null,null,null,null,null,null,null,null,null,null,null,null,null,null,null,null,null,null,null,null,"□","確認"]
[null,null,null,null,null,null,null,null,null,null,null,null,null,null,null,null,null,null,null,null,null,null,null,null,null,null,null,null,null,"□","未"]
[null,null,null,null,null,null,null,null,null,null,null,null,null,null,null,null,null,null,null,null,null,null,null,null,null,null,null,null,null,"□","確認"]
[null,null,null,null,null,null,null,null,null,null,null,null,null,null,null,null,null,null,null,null,null,null,null,null,null,null,null,null,null,"□","未"]
[null,null,null,null,null,null,null,null,null,null,null,null,null,null,null,null,null,null,null,null,null,null,null,null,null,null,null,null,null,"□","確認"]
[null,null,null,null,null,null,null,null,null,null,null,null,null,null,null,null,null,null,null,null,null,null,null,null,null,null,null,null,null,"□","未"]
[null,null,null,null,null,null,null,null,null,null,null,null,null,null,null,null,null,null,null,null,null,null,null,null,null,null,null,null,null,"□","確認"]
[null,null,null,null,null,null,null,null,null,null,null,null,null,null,null,null,null,null,null,null,null,null,null,null,null,null,null,null,null,"□","未"]
[null,null,null,null,null,null,null,null,null,null,null,null,null,null,null,null,null,null,null,null,null,null,null,null,null,null,null,null,null,"□","確認"]
[null,null,null,null,null,null,null,null,null,null,null,null,null,null,null,null,null,null,null,null,null,null,null,null,null,null,null,null,null,"□","未"]
[null,null,null,null,null,null,null,null,null,null,null,null,null,null,null,null,null,null,null,null,null,null,null,null,null,null,null,null,null,"□","確認"]
[null,null,null,null,null,null,null,null,null,null,null,null,null,null,null,null,null,null,null,null,null,null,null,null,null,null,null,null,null,"□","未"]
[null,null,null,null,null,null,null,null,null,null,null,null,null,null,null,null,null,null,null,null,null,null,null,null,null,null,null,null,null,"□","確認"]
[null,null,null,null,null,null,null,null,null,null,null,null,null,null,null,null,null,null,null,null,null,null,null,null,null,null,null,null,null,"□","未"]
[null,null,null,null,null,null,null,null,null,null,null,null,null,null,null,null,null,null,null,null,null,null,null,null,null,null,null,null,null,"□","確認"]
[null,null,null,null,null,null,null,null,null,null,null,null,null,null,null,null,null,null,null,null,null,null,null,null,null,null,null,null,null,"□","未"]
[null,null,null,null,null,null,null,null,null,null,null,null,null,null,null,null,null,null,null,null,null,null,null,null,null,null,null,null,null,"□","確認"]
[null,null,null,null,null,null,null,null,null,null,null,null,null,null,null,null,null,null,null,null,null,null,null,null,null,null,null,null,null,"□","未"]
[null,null,null,null,null,null,null,null,null,null,null,null,null,null,null,null,null,null,null,null,null,null,null,null,null,null,null,null,null,"□","確認"]
[null,null,null,null,null,null,null,null,null,null,null,null,null,null,null,null,null,null,null,null,null,null,null,null,null,null,null,null,null,"□","未"]
[null,null,null,null,null,null,null,null,null,null,null,null,null,null,null,null,null,null,null,null,null,null,null,null,null,null,null,null,null,"□","確認"]
[null,null,null,null,null,null,null,null,null,null,null,null,null,null,null,null,null,null,null,null,null,null,null,null,null,null,null,null,null,"□","未"]
[null,null,null,null,null,null,null,null,null,null,null,null,null,null,null,null,null,null,null,null,null,null,null,null,null,null,null,null,null,"□","確認"]
[null,null,null,null,null,null,null,null,null,null,null,null,null,null,null,null,null,null,null,null,null,null,null,null,null,null,null,null,null,"□","未"]
[null,null,null,null,null,null,null,null,null,null,null,null,null,null,null,null,null,null,null,null,null,null,null,null,null,null,null,null,null,"□","確認"]
[null,null,null,null,null,null,null,null,null,null,null,null,null,null,null,null,null,null,null,null,null,null,null,null,null,null,null,null,null,"□","未"]
[]
[]
["（注意）"]
[null,"１．計画変更に係る変更事由は記載することができませんのでご注意ください。"]
[null,"２．※欄は判定機関の記入欄となります。"]

{"sheet":"説明書（換気）","index":10,"n_rows":37,"n_cols":31,"rows_kept":37,"cut":false,"hidden":false,"merged":[[4,1,5,23],[4,24,4,28],[5,24,5,28],[0,0,0,33],[2,1,2,32],[3,1,3,23],[3,24,3,28],[3,29,3,32],[6,1,7,23],[6,24,6,28],[7,24,7,28],[8,1,9,23],[8,24,8,28],[9,24,9,28],[10,1,11,23],[10,24,10,28],[11,24,11,28],[12,1,13,23],[12,24,12,28],[13,24,13,28],[14,1,15,23],[14,24,14,28],[15,24,15,28],[16,1,17,23],[16,24,16,28],[17,24,17,28],[18,1,19,23],[18,24,18,28],[19,24,19,28],[20,1,21,23],[20,24,20,28],[21,24,21,28],[22,1,23,23],[22,24,22,28],[23,24,23,28],[24,1,25,23],[24,24,24,28],[25,24,25,28],[30,1,31,23],[30,24,30,28],[31,24,31,28],[34,0,34,33],[26,1,27,23],[26,24,26,28],[27,24,27,28],[28,1,29,23],[28,24,28,28],[29,24,29,28]]}
["軽微変更概要説明書（モデル建物法）"]
["［換気設備等に係る変更関係］"]
[null,"　モデル建物法入力シート（様式Ｄ）に係る内容について、以下の事項を変更します。"]
[null,"変更事項",null,null,null,null,null,null,null,null,null,null,null,null,null,null,null,null,null,null,null,null,null,null,"図面名",null,null,null,null,"確認欄※"]
[null,null,null,null,null,null,null,null,null,null,null,null,null,null,null,null,null,null,null,null,null,null,null,null,null,null,null,null,null,"□","確認"]
[null,null,null,null,null,null,null,null,null,null,null,null,null,null,null,null,null,null,null,null,null,null,null,null,null,null,null,null,null,"□","未"]
[null,null,null,null,null,null,null,null,null,null,null,null,null,null,null,null,null,null,null,null,null,null,null,null,null,null,null,null,null,"□","確認"]
[null,null,null,null,null,null,null,null,null,null,null,null,null,null,null,null,null,null,null,null,null,null,null,null,null,null,null,null,null,"□","未"]
[null,null,null,null,null,null,null,null,null,null,null,null,null,null,null,null,null,null,null,null,null,null,null,null,null,null,null,null,null,"□","確認"]
[null,null,null,null,null,null,null,null,null,null,null,null,null,null,null,null,null,null,null,null,null,null,null,null,null,null,null,null,null,"□","未"]
[null,null,null,null,null,null,null,null,null,null,null,null,null,null,null,null,null,null,null,null,null,null,null,null,null,null,null,null,null,"□","確認"]
[null,null,null,null,null,null,null,null,null,null,null,null,null,null,null,null,null,null,null,null,null,null,null,null,null,null,null,null,null,"□","未"]
[null,null,null,null,null,null,null,null,null,null,null,null,null,null,null,null,null,null,null,null,null,null,null,null,null,null,null,null,null,"□","確認"]
[null,null,null,null,null,null,null,null,null,null,null,null,null,null,null,null,null,null,null,null,null,null,null,null,null,null,null,null,null,"□","未"]
[null,null,null,null,null,null,null,null,null,null,null,null,null,null,null,null,null,null,null,null,null,null,null,null,null,null,null,null,null,"□","確認"]
[null,null,null,null,null,null,null,null,null,null,null,null,null,null,null,null,null,null,null,null,null,null,null,null,null,null,null,null,null,"□","未"]
[null,null,null,null,null,null,null,null,null,null,null,null,null,null,null,null,null,null,null,null,null,null,null,null,null,null,null,null,null,"□","確認"]
[null,null,null,null,null,null,null,null,null,null,null,null,null,null,null,null,null,null,null,null,null,null,null,null,null,null,null,null,null,"□","未"]
[null,null,null,null,null,null,null,null,null,null,null,null,null,null,null,null,null,null,null,null,null,null,null,null,null,null,null,null,null,"□","確認"]
[null,null,null,null,null,null,null,null,null,null,null,null,null,null,null,null,null,null,null,null,null,null,null,null,null,null,null,null,null,"□","未"]
[null,null,null,null,null,null,null,null,null,null,null,null,null,null,null,null,null,null,null,null,null,null,null,null,null,null,null,null,null,"□","確認"]
[null,null,null,null,null,null,null,null,null,null,null,null,null,null,null,null,null,null,null,null,null,null,null,null,null,null,null,null,null,"□","未"]
[null,null,null,null,null,null,null,null,null,null,null,null,null,null,null,null,null,null,null,null,null,null,null,null,null,null,null,null,null,"□","確認"]
[null,null,null,null,null,null,null,null,null,null,null,null,null,null,null,null,null,null,null,null,null,null,null,null,null,null,null,null,null,"□","未"]
[null,null,null,null,null,null,null,null,null,null,null,null,null,null,null,null,null,null,null,null,null,null,null,null,null,null,null,null,null,"□","確認"]
[null,null,null,null,null,null,null,null,null,null,null,null,null,null,null,null,null,null,null,null,null,null,null,null,null,null,null,null,null,"□","未"]
[null,null,null,null,null,null,null,null,null,null,null,null,null,null,null,null,null,null,null,null,null,null,null,null,null,null,null,null,null,"□","確認"]
[null,null,null,null,null,null,null,null,null,null,null,null,null,null,null,null,null,null,null,null,null,null,null,null,null,null,null,null,null,"□","未"]
[null,null,null,null,null,null,null,null,null,null,null,null,null,null,null,null,null,null,null,null,null,null,null,null,null,null,null,null,null,"□","確認"]
[null,null,null,null,null,null,null,null,null,null,null,null,null,null,null,null,null,null,null,null,null,null,null,null,null,null,null,null,null,"□","未"]
[null,null,null,null,null,null,null,null,null,null,null,null,null,null,null,null,null,null,null,null,null,null,null,null,null,null,null,null,null,"□","確認"]
[null,null,null,null,null,null,null,null,null,null,null,null,null,null,null,null,null,null,null,null,null,null,null,null,null,null,null,null,null,"□","未"]
[]
[]
["（注意）"]
[null,"１．計画変更に係る変更事由は記載することができませんのでご注意ください。"]
[null,"２．※欄は判定機関の記入欄となります。"]

{"sheet":"説明書（照明）","index":11,"n_rows":37,"n_cols":31,"rows_kept":37,"cut":false,"hidden":false,"merged":[[4,1,5,23],[4,24,4,28],[5,24,5,28],[0,0,0,33],[2,1,2,32],[3,1,3,23],[3,24,3,28],[3,29,3,32],[6,1,7,23],[6,24,6,28],[7,24,7,28],[8,1,9,23],[8,24,8,28],[9,24,9,28],[10,1,11,23],[10,24,10,28],[11,24,11,28],[12,1,13,23],[12,24,12,28],[13,24,13,28],[14,1,15,23],[14,24,14,28],[15,24,15,28],[16,1,17,23],[16,24,16,28],[17,24,17,28],[18,1,19,23],[18,24,18,28],[19,24,19,28],[20,1,21,23],[20,24,20,28],[21,24,21,28],[22,1,23,23],[22,24,22,28],[23,24,23,28],[24,1,25,23],[24,24,24,28],[25,24,25,28],[30,1,31,23],[30,24,30,28],[31,24,31,28],[34,0,34,33],[26,1,27,23],[26,24,26,28],[27,24,27,28],[28,1,29,23],[28,24,28,28],[29,24,29,28]]}
["軽微変更概要説明書（モデル建物法）"]
["［照明設備等に係る変更関係］"]
[null,"　モデル建物法入力シート（様式Ｅ）に係る内容について、以下の事項を変更します。"]
[null,"変更事項",null,null,null,null,null,null,null,null,null,null,null,null,null,null,null,null,null,null,null,null,null,null,"図面名",null,null,null,null,"確認欄※"]
[null,null,null,null,null,null,null,null,null,null,null,null,null,null,null,null,null,null,null,null,null,null,null,null,null,null,null,null,null,"□","確認"]
[null,null,null,null,null,null,null,null,null,null,null,null,null,null,null,null,null,null,null,null,null,null,null,null,null,null,null,null,null,"□","未"]
[null,null,null,null,null,null,null,null,null,null,null,null,null,null,null,null,null,null,null,null,null,null,null,null,null,null,null,null,null,"□","確認"]
[null,null,null,null,null,null,null,null,null,null,null,null,null,null,null,null,null,null,null,null,null,null,null,null,null,null,null,null,null,"□","未"]
[null,null,null,null,null,null,null,null,null,null,null,null,null,null,null,null,null,null,null,null,null,null,null,null,null,null,null,null,null,"□","確認"]
[null,null,null,null,null,null,null,null,null,null,null,null,null,null,null,null,null,null,null,null,null,null,null,null,null,null,null,null,null,"□","未"]
[null,null,null,null,null,null,null,null,null,null,null,null,null,null,null,null,null,null,null,null,null,null,null,null,null,null,null,null,null,"□","確認"]
[null,null,null,null,null,null,null,null,null,null,null,null,null,null,null,null,null,null,null,null,null,null,null,null,null,null,null,null,null,"□","未"]
[null,null,null,null,null,null,null,null,null,null,null,null,null,null,null,null,null,null,null,null,null,null,null,null,null,null,null,null,null,"□","確認"]
[null,null,null,null,null,null,null,null,null,null,null,null,null,null,null,null,null,null,null,null,null,null,null,null,null,null,null,null,null,"□","未"]
[null,null,null,null,null,null,null,null,null,null,null,null,null,null,null,null,null,null,null,null,null,null,null,null,null,null,null,null,null,"□","確認"]
[null,null,null,null,null,null,null,null,null,null,null,null,null,null,null,null,null,null,null,null,null,null,null,null,null,null,null,null,null,"□","未"]
[null,null,null,null,null,null,null,null,null,null,null,null,null,null,null,null,null,null,null,null,null,null,null,null,null,null,null,null,null,"□","確認"]
[null,null,null,null,null,null,null,null,null,null,null,null,null,null,null,null,null,null,null,null,null,null,null,null,null,null,null,null,null,"□","未"]
[null,null,null,null,null,null,null,null,null,null,null,null,null,null,null,null,null,null,null,null,null,null,null,null,null,null,null,null,null,"□","確認"]
[null,null,null,null,null,null,null,null,null,null,null,null,null,null,null,null,null,null,null,null,null,null,null,null,null,null,null,null,null,"□","未"]
[null,null,null,null,null,null,null,null,null,null,null,null,null,null,null,null,null,null,null,null,null,null,null,null,null,null,null,null,null,"□","確認"]
[null,null,null,null,null,null,null,null,null,null,null,null,null,null,null,null,null,null,null,null,null,null,null,null,null,null,null,null,null,"□","未"]
[null,null,null,null,null,null,null,null,null,null,null,null,null,null,null,null,null,null,null,null,null,null,null,null,null,null,null,null,null,"□","確認"]
[null,null,null,null,null,null,null,null,null,null,null,null,null,null,null,null,null,null,null,null,null,null,null,null,null,null,null,null,null,"□","未"]
[null,null,null,null,null,null,null,null,null,null,null,null,null,null,null,null,null,null,null,null,null,null,null,null,null,null,null,null,null,"□","確認"]
[null,null,null,null,null,null,null,null,null,null,null,null,null,null,null,null,null,null,null,null,null,null,null,null,null,null,null,null,null,"□","未"]
[null,null,null,null,null,null,null,null,null,null,null,null,null,null,null,null,null,null,null,null,null,null,null,null,null,null,null,null,null,"□","確認"]
[null,null,null,null,null,null,null,null,null,null,null,null,null,null,null,null,null,null,null,null,null,null,null,null,null,null,null,null,null,"□","未"]
[null,null,null,null,null,null,null,null,null,null,null,null,null,null,null,null,null,null,null,null,null,null,null,null,null,null,null,null,null,"□","確認"]
[null,null,null,null,null,null,null,null,null,null,null,null,null,null,null,null,null,null,null,null,null,null,null,null,null,null,null,null,null,"□","未"]
[null,null,null,null,null,null,null,null,null,null,null,null,null,null,null,null,null,null,null,null,null,null,null,null,null,null,null,null,null,"□","確認"]
[null,null,null,null,null,null,null,null,null,null,null,null,null,null,null,null,null,null,null,null,null,null,null,null,null,null,null,null,null,"□","未"]
[]
[]
["（注意）"]
[null,"１．計画変更に係る変更事由は記載することができませんのでご注意ください。"]
[null,"２．※欄は判定機関の記入欄となります。"]

{"sheet":"説明書（給湯）","index":12,"n_rows":37,"n_cols":31,"rows_kept":37,"cut":false,"hidden":false,"merged":[[4,1,5,23],[4,24,4,28],[5,24,5,28],[0,0,0,33],[2,1,2,32],[3,1,3,23],[3,24,3,28],[3,29,3,32],[6,1,7,23],[6,24,6,28],[7,24,7,28],[8,1,9,23],[8,24,8,28],[9,24,9,28],[10,1,11,23],[10,24,10,28],[11,24,11,28],[12,1,13,23],[12,24,12,28],[13,24,13,28],[14,1,15,23],[14,24,14,28],[15,24,15,28],[16,1,17,23],[16,24,16,28],[17,24,17,28],[18,1,19,23],[18,24,18,28],[19,24,19,28],[20,1,21,23],[20,24,20,28],[21,24,21,28],[22,1,23,23],[22,24,22,28],[23,24,23,28],[24,1,25,23],[24,24,24,28],[25,24,25,28],[30,1,31,23],[30,24,30,28],[31,24,31,28],[34,0,34,33],[26,1,27,23],[26,24,26,28],[27,24,27,28],[28,1,29,23],[28,24,28,28],[29,24,29,28]]}
["軽微変更概要説明書（モデル建物法）"]
["［給湯設備等に係る変更関係］"]
[null,"　モデル建物法入力シート（様式Ｆ）に係る内容について、以下の事項を変更します。"]
[null,"変更事項",null,null,null,null,null,null,null,null,null,null,null,null,null,null,null,null,null,null,null,null,null,null,"図面名",null,null,null,null,"確認欄※"]
[null,null,null,null,null,null,null,null,null,null,null,null,null,null,null,null,null,null,null,null,null,null,null,null,null,null,null,null,null,"□","確認"]
[null,null,null,null,null,null,null,null,null,null,null,null,null,null,null,null,null,null,null,null,null,null,null,null,null,null,null,null,null,"□","未"]
[null,null,null,null,null,null,null,null,null,null,null,null,null,null,null,null,null,null,null,null,null,null,null,null,null,null,null,null,null,"□","確認"]
[null,null,null,null,null,null,null,null,null,null,null,null,null,null,null,null,null,null,null,null,null,null,null,null,null,null,null,null,null,"□","未"]
[null,null,null,null,null,null,null,null,null,null,null,null,null,null,null,null,null,null,null,null,null,null,null,null,null,null,null,null,null,"□","確認"]
[null,null,null,null,null,null,null,null,null,null,null,null,null,null,null,null,null,null,null,null,null,null,null,null,null,null,null,null,null,"□","未"]
[null,null,null,null,null,null,null,null,null,null,null,null,null,null,null,null,null,null,null,null,null,null,null,null,null,null,null,null,null,"□","確認"]
[null,null,null,null,null,null,null,null,null,null,null,null,null,null,null,null,null,null,null,null,null,null,null,null,null,null,null,null,null,"□","未"]
[null,null,null,null,null,null,null,null,null,null,null,null,null,null,null,null,null,null,null,null,null,null,null,null,null,null,null,null,null,"□","確認"]
[null,null,null,null,null,null,null,null,null,null,null,null,null,null,null,null,null,null,null,null,null,null,null,null,null,null,null,null,null,"□","未"]
[null,null,null,null,null,null,null,null,null,null,null,null,null,null,null,null,null,null,null,null,null,null,null,null,null,null,null,null,null,"□","確認"]
[null,null,null,null,null,null,null,null,null,null,null,null,null,null,null,null,null,null,null,null,null,null,null,null,null,null,null,null,null,"□","未"]
[null,null,null,null,null,null,null,null,null,null,null,null,null,null,null,null,null,null,null,null,null,null,null,null,null,null,null,null,null,"□","確認"]
[null,null,null,null,null,null,null,null,null,null,null,null,null,null,null,null,null,null,null,null,null,null,null,null,null,null,null,null,null,"□","未"]
[null,null,null,null,null,null,null,null,null,null,null,null,null,null,null,null,null,null,null,null,null,null,null,null,null,null,null,null,null,"□","確認"]
[null,null,null,null,null,null,null,null,null,null,null,null,null,null,null,null,null,null,null,null,null,null,null,null,null,null,null,null,null,"□","未"]
[null,null,null,null,null,null,null,null,null,null,null,null,null,null,null,null,null,null,null,null,null,null,null,null,null,null,null,null,null,"□","確認"]
[null,null,null,null,null,null,null,null,null,null,null,null,null,null,null,null,null,null,null,null,null,null,null,null,null,null,null,null,null,"□","未"]
[null,null,null,null,null,null,null,null,null,null,null,null,null,null,null,null,null,null,null,null,null,null,null,null,null,null,null,null,null,"□","確認"]
[null,null,null,null,null,null,null,null,null,null,null,null,null,null,null,null,null,null,null,null,null,null,null,null,null,null,null,null,null,"□","未"]
[null,null,null,null,null,null,null,null,null,null,null,null,null,null,null,null,null,null,null,null,null,null,null,null,null,null,null,null,null,"□","確認"]
[null,null,null,null,null,null,null,null,null,null,null,null,null,null,null,null,null,null,null,null,null,null,null,null,null,null,null,null,null,"□","未"]
[null,null,null,null,null,null,null,null,null,null,null,null,null,null,null,null,null,null,null,null,null,null,null,null,null,null,null,null,null,"□","確認"]
[null,null,null,null,null,null,null,null,null,null,null,null,null,null,null,null,null,null,null,null,null,null,null,null,null,null,null,null,null,"□","未"]
[null,null,null,null,null,null,null,null,null,null,null,null,null,null,null,null,null,null,null,null,null,null,null,null,null,null,null,null,null,"□","確認"]
[null,null,null,null,null,null,null,null,null,null,null,null,null,null,null,null,null,null,null,null,null,null,null,null,null,null,null,null,null,"□","未"]
[null,null,null,null,null,null,null,null,null,null,null,null,null,null,null,null,null,null,null,null,null,null,null,null,null,null,null,null,null,"□","確認"]
[null,null,null,null,null,null,null,null,null,null,null,null,null,null,null,null,null,null,null,null,null,null,null,null,null,null,null,null,null,"□","未"]
[]
[]
["（注意）"]
[null,"１．計画変更に係る変更事由は記載することができませんのでご注意ください。"]
[null,"２．※欄は判定機関の記入欄となります。"]

{"sheet":"説明書（昇降機）","index":13,"n_rows":37,"n_cols":31,"rows_kept":37,"cut":false,"hidden":false,"merged":[[4,1,5,23],[4,24,4,28],[5,24,5,28],[0,0,0,33],[2,1,2,32],[3,1,3,23],[3,24,3,28],[3,29,3,32],[6,1,7,23],[6,24,6,28],[7,24,7,28],[8,1,9,23],[8,24,8,28],[9,24,9,28],[10,1,11,23],[10,24,10,28],[11,24,11,28],[12,1,13,23],[12,24,12,28],[13,24,13,28],[14,1,15,23],[14,24,14,28],[15,24,15,28],[16,1,17,23],[16,24,16,28],[17,24,17,28],[18,1,19,23],[18,24,18,28],[19,24,19,28],[20,1,21,23],[20,24,20,28],[21,24,21,28],[22,1,23,23],[22,24,22,28],[23,24,23,28],[24,1,25,23],[24,24,24,28],[25,24,25,28],[30,1,31,23],[30,24,30,28],[31,24,31,28],[34,0,34,33],[26,1,27,23],[26,24,26,28],[27,24,27,28],[28,1,29,23],[28,24,28,28],[29,24,29,28]]}
["軽微変更概要説明書（モデル建物法）"]
["［昇降機に係る変更関係］"]
[null,"　モデル建物法入力シート（様式Ｇ）に係る内容について、以下の事項を変更します。"]
[null,"変更事項",null,null,null,null,null,null,null,null,null,null,null,null,null,null,null,null,null,null,null,null,null,null,"図面名",null,null,null,null,"確認欄※"]
[null,null,null,null,null,null,null,null,null,null,null,null,null,null,null,null,null,null,null,null,null,null,null,null,null,null,null,null,null,"□","確認"]
[null,null,null,null,null,null,null,null,null,null,null,null,null,null,null,null,null,null,null,null,null,null,null,null,null,null,null,null,null,"□","未"]
[null,null,null,null,null,null,null,null,null,null,null,null,null,null,null,null,null,null,null,null,null,null,null,null,null,null,null,null,null,"□","確認"]
[null,null,null,null,null,null,null,null,null,null,null,null,null,null,null,null,null,null,null,null,null,null,null,null,null,null,null,null,null,"□","未"]
[null,null,null,null,null,null,null,null,null,null,null,null,null,null,null,null,null,null,null,null,null,null,null,null,null,null,null,null,null,"□","確認"]
[null,null,null,null,null,null,null,null,null,null,null,null,null,null,null,null,null,null,null,null,null,null,null,null,null,null,null,null,null,"□","未"]
[null,null,null,null,null,null,null,null,null,null,null,null,null,null,null,null,null,null,null,null,null,null,null,null,null,null,null,null,null,"□","確認"]
[null,null,null,null,null,null,null,null,null,null,null,null,null,null,null,null,null,null,null,null,null,null,null,null,null,null,null,null,null,"□","未"]
[null,null,null,null,null,null,null,null,null,null,null,null,null,null,null,null,null,null,null,null,null,null,null,null,null,null,null,null,null,"□","確認"]
[null,null,null,null,null,null,null,null,null,null,null,null,null,null,null,null,null,null,null,null,null,null,null,null,null,null,null,null,null,"□","未"]
[null,null,null,null,null,null,null,null,null,null,null,null,null,null,null,null,null,null,null,null,null,null,null,null,null,null,null,null,null,"□","確認"]
[null,null,null,null,null,null,null,null,null,null,null,null,null,null,null,null,null,null,null,null,null,null,null,null,null,null,null,null,null,"□","未"]
[null,null,null,null,null,null,null,null,null,null,null,null,null,null,null,null,null,null,null,null,null,null,null,null,null,null,null,null,null,"□","確認"]
[null,null,null,null,null,null,null,null,null,null,null,null,null,null,null,null,null,null,null,null,null,null,null,null,null,null,null,null,null,"□","未"]
[null,null,null,null,null,null,null,null,null,null,null,null,null,null,null,null,null,null,null,null,null,null,null,null,null,null,null,null,null,"□","確認"]
[null,null,null,null,null,null,null,null,null,null,null,null,null,null,null,null,null,null,null,null,null,null,null,null,null,null,null,null,null,"□","未"]
[null,null,null,null,null,null,null,null,null,null,null,null,null,null,null,null,null,null,null,null,null,null,null,null,null,null,null,null,null,"□","確認"]
[null,null,null,null,null,null,null,null,null,null,null,null,null,null,null,null,null,null,null,null,null,null,null,null,null,null,null,null,null,"□","未"]
[null,null,null,null,null,null,null,null,null,null,null,null,null,null,null,null,null,null,null,null,null,null,null,null,null,null,null,null,null,"□","確認"]
[null,null,null,null,null,null,null,null,null,null,null,null,null,null,null,null,null,null,null,null,null,null,null,null,null,null,null,null,null,"□","未"]
[null,null,null,null,null,null,null,null,null,null,null,null,null,null,null,null,null,null,null,null,null,null,null,null,null,null,null,null,null,"□","確認"]
[null,null,null,null,null,null,null,null,null,null,null,null,null,null,null,null,null,null,null,null,null,null,null,null,null,null,null,null,null,"□","未"]
[null,null,null,null,null,null,null,null,null,null,null,null,null,null,null,null,null,null,null,null,null,null,null,null,null,null,null,null,null,"□","確認"]
[null,null,null,null,null,null,null,null,null,null,null,null,null,null,null,null,null,null,null,null,null,null,null,null,null,null,null,null,null,"□","未"]
[null,null,null,null,null,null,null,null,null,null,null,null,null,null,null,null,null,null,null,null,null,null,null,null,null,null,null,null,null,"□","確認"]
[null,null,null,null,null,null,null,null,null,null,null,null,null,null,null,null,null,null,null,null,null,null,null,null,null,null,null,null,null,"□","未"]
[null,null,null,null,null,null,null,null,null,null,null,null,null,null,null,null,null,null,null,null,null,null,null,null,null,null,null,null,null,"□","確認"]
[null,null,null,null,null,null,null,null,null,null,null,null,null,null,null,null,null,null,null,null,null,null,null,null,null,null,null,null,null,"□","未"]
[]
[]
["（注意）"]
[null,"１．計画変更に係る変更事由は記載することができませんのでご注意ください。"]
[null,"２．※欄は判定機関の記入欄となります。"]

{"sheet":"説明書（太陽光）","index":14,"n_rows":37,"n_cols":31,"rows_kept":37,"cut":false,"hidden":false,"merged":[[4,1,5,23],[4,24,4,28],[5,24,5,28],[0,0,0,33],[2,1,2,32],[3,1,3,23],[3,24,3,28],[3,29,3,32],[6,1,7,23],[6,24,6,28],[7,24,7,28],[8,1,9,23],[8,24,8,28],[9,24,9,28],[10,1,11,23],[10,24,10,28],[11,24,11,28],[12,1,13,23],[12,24,12,28],[13,24,13,28],[14,1,15,23],[14,24,14,28],[15,24,15,28],[16,1,17,23],[16,24,16,28],[17,24,17,28],[18,1,19,23],[18,24,18,28],[19,24,19,28],[20,1,21,23],[20,24,20,28],[21,24,21,28],[22,1,23,23],[22,24,22,28],[23,24,23,28],[24,1,25,23],[24,24,24,28],[25,24,25,28],[30,1,31,23],[30,24,30,28],[31,24,31,28],[34,0,34,33],[26,1,27,23],[26,24,26,28],[27,24,27,28],[28,1,29,23],[28,24,28,28],[29,24,29,28]]}
["軽微変更概要説明書（モデル建物法）"]
["［太陽光発電に係る変更関係］"]
[null,"　モデル建物法入力シート（様式Ｈ）に係る内容について、以下の事項を変更します。"]
[null,"変更事項",null,null,null,null,null,null,null,null,null,null,null,null,null,null,null,null,null,null,null,null,null,null,"図面名",null,null,null,null,"確認欄※"]
[null,null,null,null,null,null,null,null,null,null,null,null,null,null,null,null,null,null,null,null,null,null,null,null,null,null,null,null,null,"□","確認"]
[null,null,null,null,null,null,null,null,null,null,null,null,null,null,null,null,null,null,null,null,null,null,null,null,null,null,null,null,null,"□","未"]
[null,null,null,null,null,null,null,null,null,null,null,null,null,null,null,null,null,null,null,null,null,null,null,null,null,null,null,null,null,"□","確認"]
[null,null,null,null,null,null,null,null,null,null,null,null,null,null,null,null,null,null,null,null,null,null,null,null,null,null,null,null,null,"□","未"]
[null,null,null,null,null,null,null,null,null,null,null,null,null,null,null,null,null,null,null,null,null,null,null,null,null,null,null,null,null,"□","確認"]
[null,null,null,null,null,null,null,null,null,null,null,null,null,null,null,null,null,null,null,null,null,null,null,null,null,null,null,null,null,"□","未"]
[null,null,null,null,null,null,null,null,null,null,null,null,null,null,null,null,null,null,null,null,null,null,null,null,null,null,null,null,null,"□","確認"]
[null,null,null,null,null,null,null,null,null,null,null,null,null,null,null,null,null,null,null,null,null,null,null,null,null,null,null,null,null,"□","未"]
[null,null,null,null,null,null,null,null,null,null,null,null,null,null,null,null,null,null,null,null,null,null,null,null,null,null,null,null,null,"□","確認"]
[null,null,null,null,null,null,null,null,null,null,null,null,null,null,null,null,null,null,null,null,null,null,null,null,null,null,null,null,null,"□","未"]
[null,null,null,null,null,null,null,null,null,null,null,null,null,null,null,null,null,null,null,null,null,null,null,null,null,null,null,null,null,"□","確認"]
[null,null,null,null,null,null,null,null,null,null,null,null,null,null,null,null,null,null,null,null,null,null,null,null,null,null,null,null,null,"□","未"]
[null,null,null,null,null,null,null,null,null,null,null,null,null,null,null,null,null,null,null,null,null,null,null,null,null,null,null,null,null,"□","確認"]
[null,null,null,null,null,null,null,null,null,null,null,null,null,null,null,null,null,null,null,null,null,null,null,null,null,null,null,null,null,"□","未"]
[null,null,null,null,null,null,null,null,null,null,null,null,null,null,null,null,null,null,null,null,null,null,null,null,null,null,null,null,null,"□","確認"]
[null,null,null,null,null,null,null,null,null,null,null,null,null,null,null,null,null,null,null,null,null,null,null,null,null,null,null,null,null,"□","未"]
[null,null,null,null,null,null,null,null,null,null,null,null,null,null,null,null,null,null,null,null,null,null,null,null,null,null,null,null,null,"□","確認"]
[null,null,null,null,null,null,null,null,null,null,null,null,null,null,null,null,null,null,null,null,null,null,null,null,null,null,null,null,null,"□","未"]
[null,null,null,null,null,null,null,null,null,null,null,null,null,null,null,null,null,null,null,null,null,null,null,null,null,null,null,null,null,"□","確認"]
[null,null,null,null,null,null,null,null,null,null,null,null,null,null,null,null,null,null,null,null,null,null,null,null,null,null,null,null,null,"□","未"]
[null,null,null,null,null,null,null,null,null,null,null,null,null,null,null,null,null,null,null,null,null,null,null,null,null,null,null,null,null,"□","確認"]
[null,null,null,null,null,null,null,null,null,null,null,null,null,null,null,null,null,null,null,null,null,null,null,null,null,null,null,null,null,"□","未"]
[null,null,null,null,null,null,null,null,null,null,null,null,null,null,null,null,null,null,null,null,null,null,null,null,null,null,null,null,null,"□","確認"]
[null,null,null,null,null,null,null,null,null,null,null,null,null,null,null,null,null,null,null,null,null,null,null,null,null,null,null,null,null,"□","未"]
[null,null,null,null,null,null,null,null,null,null,null,null,null,null,null,null,null,null,null,null,null,null,null,null,null,null,null,null,null,"□","確認"]
[null,null,null,null,null,null,null,null,null,null,null,null,null,null,null,null,null,null,null,null,null,null,null,null,null,null,null,null,null,"□","未"]
[null,null,null,null,null,null,null,null,null,null,null,null,null,null,null,null,null,null,null,null,null,null,null,null,null,null,null,null,null,"□","確認"]
[null,null,null,null,null,null,null,null,null,null,null,null,null,null,null,null,null,null,null,null,null,null,null,null,null,null,null,null,null,"□","未"]
[]
[]
["（注意）"]
[null,"１．計画変更に係る変更事由は記載することができませんのでご注意ください。"]
[null,"２．※欄は判定機関の記入欄となります。"]

{"sheet":"説明書（コージェネ）","index":15,"n_rows":37,"n_cols":31,"rows_kept":37,"cut":false,"hidden":false,"merged":[[34,0,34,33],[26,1,27,23],[26,24,26,28],[27,24,27,28],[28,1,29,23],[28,24,28,28],[29,24,29,28],[24,1,25,23],[24,24,24,28],[25,24,25,28],[30,1,31,23],[30,24,30,28],[31,24,31,28],[20,1,21,23],[20,24,20,28],[21,24,21,28],[22,1,23,23],[22,24,22,28],[23,24,23,28],[16,1,17,23],[16,24,16,28],[17,24,17,28],[18,1,19,23],[18,24,18,28],[19,24,19,28],[12,1,13,23],[12,24,12,28],[13,24,13,28],[14,1,15,23],[14,24,14,28],[15,24,15,28],[8,1,9,23],[8,24,8,28],[9,24,9,28],[10,1,11,23],[10,24,10,28],[11,24,11,28],[4,1,5,23],[4,24,4,28],[5,24,5,28],[6,1,7,23],[6,24,6,28],[7,24,7,28],[0,0,0,33],[2,1,2,32],[3,1,3,23],[3,24,3,28],[3,29,3,32]]}
["軽微変更概要説明書（モデル建物法）"]
["［コージェネレーション設備に係る変更関係］"]
[null,"　モデル建物法入力シート（様式Ⅰ）に係る内容について、以下の事項を変更します。"]
[null,"変更事項",null,null,null,null,null,null,null,null,null,null,null,null,null,null,null,null,null,null,null,null,null,null,"図面名",null,null,null,null,"確認欄※"]
[null,null,null,null,null,null,null,null,null,null,null,null,null,null,null,null,null,null,null,null,null,null,null,null,null,null,null,null,null,"□","確認"]
[null,null,null,null,null,null,null,null,null,null,null,null,null,null,null,null,null,null,null,null,null,null,null,null,null,null,null,null,null,"□","未"]
[null,null,null,null,null,null,null,null,null,null,null,null,null,null,null,null,null,null,null,null,null,null,null,null,null,null,null,null,null,"□","確認"]
[null,null,null,null,null,null,null,null,null,null,null,null,null,null,null,null,null,null,null,null,null,null,null,null,null,null,null,null,null,"□","未"]
[null,null,null,null,null,null,null,null,null,null,null,null,null,null,null,null,null,null,null,null,null,null,null,null,null,null,null,null,null,"□","確認"]
[null,null,null,null,null,null,null,null,null,null,null,null,null,null,null,null,null,null,null,null,null,null,null,null,null,null,null,null,null,"□","未"]
[null,null,null,null,null,null,null,null,null,null,null,null,null,null,null,null,null,null,null,null,null,null,null,null,null,null,null,null,null,"□","確認"]
[null,null,null,null,null,null,null,null,null,null,null,null,null,null,null,null,null,null,null,null,null,null,null,null,null,null,null,null,null,"□","未"]
[null,null,null,null,null,null,null,null,null,null,null,null,null,null,null,null,null,null,null,null,null,null,null,null,null,null,null,null,null,"□","確認"]
[null,null,null,null,null,null,null,null,null,null,null,null,null,null,null,null,null,null,null,null,null,null,null,null,null,null,null,null,null,"□","未"]
[null,null,null,null,null,null,null,null,null,null,null,null,null,null,null,null,null,null,null,null,null,null,null,null,null,null,null,null,null,"□","確認"]
[null,null,null,null,null,null,null,null,null,null,null,null,null,null,null,null,null,null,null,null,null,null,null,null,null,null,null,null,null,"□","未"]
[null,null,null,null,null,null,null,null,null,null,null,null,null,null,null,null,null,null,null,null,null,null,null,null,null,null,null,null,null,"□","確認"]
[null,null,null,null,null,null,null,null,null,null,null,null,null,null,null,null,null,null,null,null,null,null,null,null,null,null,null,null,null,"□","未"]
[null,null,null,null,null,null,null,null,null,null,null,null,null,null,null,null,null,null,null,null,null,null,null,null,null,null,null,null,null,"□","確認"]
[null,null,null,null,null,null,null,null,null,null,null,null,null,null,null,null,null,null,null,null,null,null,null,null,null,null,null,null,null,"□","未"]
[null,null,null,null,null,null,null,null,null,null,null,null,null,null,null,null,null,null,null,null,null,null,null,null,null,null,null,null,null,"□","確認"]
[null,null,null,null,null,null,null,null,null,null,null,null,null,null,null,null,null,null,null,null,null,null,null,null,null,null,null,null,null,"□","未"]
[null,null,null,null,null,null,null,null,null,null,null,null,null,null,null,null,null,null,null,null,null,null,null,null,null,null,null,null,null,"□","確認"]
[null,null,null,null,null,null,null,null,null,null,null,null,null,null,null,null,null,null,null,null,null,null,null,null,null,null,null,null,null,"□","未"]
[null,null,null,null,null,null,null,null,null,null,null,null,null,null,null,null,null,null,null,null,null,null,null,null,null,null,null,null,null,"□","確認"]
[null,null,null,null,null,null,null,null,null,null,null,null,null,null,null,null,null,null,null,null,null,null,null,null,null,null,null,null,null,"□","未"]
[null,null,null,null,null,null,null,null,null,null,null,null,null,null,null,null,null,null,null,null,null,null,null,null,null,null,null,null,null,"□","確認"]
[null,null,null,null,null,null,null,null,null,null,null,null,null,null,null,null,null,null,null,null,null,null,null,null,null,null,null,null,null,"□","未"]
[null,null,null,null,null,null,null,null,null,null,null,null,null,null,null,null,null,null,null,null,null,null,null,null,null,null,null,null,null,"□","確認"]
[null,null,null,null,null,null,null,null,null,null,null,null,null,null,null,null,null,null,null,null,null,null,null,null,null,null,null,null,null,"□","未"]
[null,null,null,null,null,null,null,null,null,null,null,null,null,null,null,null,null,null,null,null,null,null,null,null,null,null,null,null,null,"□","確認"]
[null,null,null,null,null,null,null,null,null,null,null,null,null,null,null,null,null,null,null,null,null,null,null,null,null,null,null,null,null,"□","未"]
[]
[]
["（注意）"]
[null,"１．計画変更に係る変更事由は記載することができませんのでご注意ください。"]
[null,"２．※欄は判定機関の記入欄となります。"]